bitfinex-derivatives/quotes_BTCF0:USTF0_20250912
["timestamp","ask_amount","ask_price","bid_price","bid_amount"]
[1757703170100,0.02288,116510.0,116500.0,1.792004]
[1757703170804,0.02288,116510.0,116500.0,2.152804]
[1757703171002,0.02288,116510.0,116500.0,1.792004]
[1757703171304,0.02288,116510.0,116500.0,1.006164]
[1757703171505,0.02288,116510.0,116500.0,1.792004]
[1757703171806,0.02288,116510.0,116500.0,1.42037]
[1757703172001,0.02288,116510.0,116500.0,1.792004]
[1757703174098,0.04939207,116510.0,116500.0,1.792004]
[1757703175507,0.04939207,116510.0,116500.0,2.152804]
[1757703175705,0.04939207,116510.0,116500.0,1.792004]
[1757703177307,0.02288,116510.0,116500.0,1.792004]
[1757703178002,0.02288,116510.0,116500.0,1.42037]
[1757703178201,0.02288,116510.0,116500.0,1.792004]
[1757703181515,0.04941422,116510.0,116500.0,1.792004]
[1757703186009,0.04941422,116510.0,116500.0,1.606187]
[1757703186215,0.67300422,116510.0,116500.0,0.62185]
[1757703186715,0.85882122,116510.0,116500.0,0.52185]
[1757703187013,0.8896194,116510.0,116500.0,0.52185]
[1757703188404,0.84303276,116510.0,116500.0,0.66108036]
[1757703188609,0.84303276,116510.0,116500.0,0.63923036]
[1757703189017,0.98226312,116510.0,116500.0,0.63923036]
[1757703189209,0.84303276,116510.0,116500.0,0.63923036]
[1757703189916,0.84303276,116510.0,116500.0,0.66195036]
[1757703190518,0.41021422,116510.0,116500.0,1.73900108]
[1757703190812,0.02658422,116510.0,116500.0,2.09980108]
[1757703191012,0.02658422,116510.0,116500.0,1.73900108]
[1757703193313,0.38738422,116510.0,116500.0,1.73900108]
[1757703193516,0.02658422,116510.0,116500.0,1.73900108]
[1757703194416,0.02658422,116510.0,116500.0,2.09980108]
[1757703194722,0.02658422,116510.0,116500.0,2.34980108]
[1757703195106,0.02645914,116510.0,116500.0,2.43559718]
[1757703195513,0.02645914,116510.0,116500.0,2.34980108]
[1757703196622,0.02645914,116510.0,116500.0,1.98900108]
[1757703197317,0.02645914,116510.0,116500.0,1.73900108]
[1757703197620,0.04926914,116510.0,116500.0,1.73900108]
[1757703198222,0.41006914,116510.0,116500.0,1.73900108]
[1757703198920,0.41006914,116510.0,116500.0,0.95332108]
[1757703199126,0.41006914,116510.0,116500.0,1.73900108]
[1757703199325,0.38366,116510.0,116500.0,0.95332108]
[1757703199622,0.38366,116510.0,116500.0,1.73900108]
[1757703200017,0.95132605,116510.0,116500.0,0.52272]
[1757703200525,0.95132605,116510.0,116500.0,0.66195036]
[1757703200724,0.81209569,116510.0,116500.0,0.66195036]
[1757703202627,0.67286533,116510.0,116500.0,0.81481072]
[1757703202814,0.41007533,116510.0,116500.0,0.95404108]
[1757703203527,0.41007533,116510.0,116500.0,1.73968108]
[1757703205226,0.41007533,116510.0,116500.0,0.95404108]
[1757703206224,0.41007533,116510.0,116500.0,1.73972108]
[1757703206615,0.38366,116510.0,116500.0,1.73972108]
[1757703206814,0.02645907,116510.0,116500.0,1.73972108]
[1757703207019,5e-05,116510.0,116500.0,1.73972108]
[1757703207530,0.38307,116510.0,116500.0,1.73972108]
[1757703207924,0.93794046,116510.0,116500.0,0.53635]
[1757703208224,0.7987101,116510.0,116500.0,0.81481072]
[1757703208424,0.5487101,116510.0,116500.0,0.81481072]
[1757703209023,0.5487101,116510.0,116500.0,0.67558036]
[1757703211025,0.70058046,116510.0,116500.0,0.53635]
[1757703211231,0.70058046,116510.0,116500.0,0.66195036]
[1757703212029,0.5613501,116510.0,116500.0,0.66195036]
[1757703212722,0.5613501,116510.0,116500.0,0.52272]
[1757703213030,0.5613501,116510.0,116500.0,0.66195036]
[1757703214818,0.53494036,116510.0,116500.0,0.66195036]
[1757703215223,1.34701062,116510.0,116500.0,0.81481072]
[1757703215630,1.34701062,116510.0,116500.0,0.67558036]
[1757703216828,1.34701062,116510.0,116500.0,0.66195036]
[1757703217034,1.48624098,116510.0,116500.0,0.66195036]
[1757703217332,1.45985072,116510.0,116500.0,0.66195036]
[1757703217926,1.32062036,116510.0,116500.0,0.66195036]
[1757703218224,1.45985072,116510.0,116500.0,0.66195036]
[1757703219434,1.45985072,116510.0,116500.0,0.52272]
[1757703221033,1.86910621,116510.0,116500.0,0.5]
[1757703221337,1.89549875,116510.0,116500.0,0.03]
[1757703221544,0.03486,116480.0,116470.0,0.76401036]
[1757703221837,0.89569036,116480.0,116470.0,0.88312072]
[1757703222934,0.89569036,116480.0,116470.0,0.88612072]
[1757703223132,0.75646,116480.0,116470.0,0.88612072]
[1757703223432,1.68133036,116480.0,116470.0,0.74989036]
[1757703224231,1.69006402,116480.0,116470.0,0.74989036]
[1757703224431,1.75731086,116480.0,116470.0,0.74989036]
[1757703224730,1.89654122,116480.0,116470.0,0.59798]
[1757703225138,1.89654122,116480.0,116470.0,0.73721036]
[1757703225341,1.75731086,116480.0,116470.0,0.73721036]
[1757703225933,1.89654122,116480.0,116470.0,0.73721036]
[1757703226333,1.89654122,116480.0,116470.0,0.73521036]
[1757703226533,1.89654122,116480.0,116470.0,0.73321036]
[1757703226734,1.11090122,116480.0,116470.0,0.73321036]
[1757703226943,1.75735086,116480.0,116470.0,0.73321036]
[1757703227642,0.97167086,116480.0,116470.0,0.73321036]
[1757703227844,1.75735086,116480.0,116470.0,0.73321036]
[1757703230847,1.75739086,116480.0,116470.0,0.73321036]
[1757703231036,1.89662122,116480.0,116470.0,0.73321036]
[1757703232048,1.75739086,116480.0,116470.0,0.73321036]
[1757703232349,1.89662122,116480.0,116470.0,0.73321036]
[1757703232645,1.89662122,116480.0,116470.0,0.59398]
[1757703232838,1.89662122,116480.0,116470.0,0.73321036]
[1757703233447,1.89662122,116480.0,116470.0,0.59398]
[1757703233745,1.89662122,116480.0,116470.0,0.73321036]
[1757703234746,2.03585158,116480.0,116470.0,0.59398]
[1757703235846,2.03581158,116480.0,116470.0,0.59398]
[1757703236844,0.08946684,116480.0,116470.0,1.27554108]
[1757703237045,0.04260879,116500.0,116490.0,0.037]
[1757703237250,0.54263915,116500.0,116490.0,0.31546072]
[1757703237443,0.68186951,116500.0,116490.0,0.037]
[1757703237648,0.69565951,116500.0,116490.0,0.02313]
[1757703237843,0.41719879,116500.0,116490.0,0.16236036]
[1757703238044,0.69565951,116500.0,116490.0,0.16236036]
[1757703238346,0.55642915,116500.0,116490.0,0.16236036]
[1757703238548,0.55742915,116500.0,116490.0,0.16236036]
[1757703239049,1.34310915,116500.0,116490.0,0.17623036]
[1757703239750,1.4130893,116500.0,116490.0,0.17623036]
[1757703240552,1.3992993,116500.0,116490.0,0.17623036]
[1757703240853,0.001,116500.0,116490.0,1.27469108]
[1757703241255,0.001,116500.0,116490.0,1.63549108]
[1757703241649,0.02263,116510.0,116500.0,0.037]
[1757703241854,0.02263,116510.0,116500.0,0.87546072]
[1757703242153,0.38343,116510.0,116500.0,0.87546072]
[1757703242750,0.2456245,116510.0,116500.0,0.73623036]
[1757703243052,0.2456245,116510.0,116500.0,0.72236036]
[1757703243053,0.6064245,116510.0,116500.0,0.72236036]
[1757703243257,0.09260414,116510.0,116500.0,0.87546072]
[1757703243445,0.02263,116510.0,116500.0,0.87546072]
[1757703243848,0.53127952,116510.0,116500.0,0.87546072]
[1757703244354,0.53127952,116510.0,116500.0,0.73623036]
[1757703244551,0.03124916,116510.0,116500.0,0.87546072]
[1757703244755,0.02263,116510.0,116500.0,0.87546072]
[1757703245256,0.38343,116510.0,116500.0,0.87546072]
[1757703245454,0.02263,116510.0,116500.0,0.87546072]
[1757703245650,0.38343,116510.0,116500.0,0.87546072]
[1757703246156,0.03118749,116510.0,116500.0,0.87546072]
[1757703246356,0.39198749,116510.0,116500.0,0.87546072]
[1757703246657,0.54500785,116510.0,116500.0,0.87546072]
[1757703248756,0.57137306,116510.0,116500.0,0.87546072]
[1757703249358,0.4321427,116510.0,116500.0,0.87546072]
[1757703249558,0.57137306,116510.0,116500.0,0.87546072]
[1757703250061,0.57137306,116510.0,116500.0,0.597]
[1757703250261,0.39198749,116510.0,116500.0,0.87546072]
[1757703250562,0.39198749,116510.0,116500.0,0.78262615]
[1757703253961,0.40577749,116510.0,116500.0,0.78262615]
[1757703255665,0.39198749,116510.0,116500.0,0.78262615]
[1757703258074,0.39198749,116510.0,116500.0,0.9682523]
[1757703258861,0.39198749,116510.0,116500.0,0.78262615]
[1757703261363,0.39198749,116510.0,116500.0,0.9682523]
[1757703261668,0.39198749,116510.0,116500.0,0.78262615]
[1757703261871,0.39198749,116510.0,116500.0,0.597]
[1757703262066,0.39198749,116510.0,116500.0,0.78262615]
[1757703264162,5e-05,116510.0,116500.0,1.5790523]
[1757703265170,0.36085,116510.0,116500.0,2.0035723]
[1757703265559,0.36085,116510.0,116500.0,1.2182523]
[1757703265765,0.36085,116510.0,116500.0,2.0035723]
[1757703265967,0.38214,116510.0,116500.0,0.9682523]
[1757703266162,0.38214,116510.0,116500.0,1.7535323]
[1757703266367,0.38214,116510.0,116500.0,1.56790615]
[1757703266872,0.38214,116510.0,116500.0,1.7535323]
[1757703271466,0.38214,116510.0,116500.0,1.56790615]
[1757703272478,0.38214,116510.0,116500.0,1.7535323]
[1757703273477,0.38214,116510.0,116500.0,1.7534123]
[1757703274272,0.38214,116510.0,116500.0,1.38216]
[1757703274473,0.36085,116510.0,116500.0,1.7534123]
[1757703276983,0.38214,116510.0,116500.0,0.9682523]
[1757703277280,0.38214,116510.0,116500.0,1.7533723]
[1757703278982,0.38214,116510.0,116500.0,0.9682523]
[1757703279183,0.38214,116510.0,116500.0,1.7533723]
[1757703281681,0.36085,116510.0,116500.0,1.7533723]
[1757703284485,0.36085,116510.0,116500.0,1.38212]
[1757703284677,0.36085,116510.0,116500.0,1.7533723]
[1757703286889,0.36085,116510.0,116500.0,1.56774615]
[1757703287786,0.36085,116510.0,116500.0,1.7533723]
[1757703289994,5e-05,116510.0,116500.0,1.7533723]
[1757703290192,0.36085,116510.0,116500.0,1.7533723]
[1757703292289,5e-05,116510.0,116500.0,1.7533723]
[1757703294097,0.02263,116510.0,116500.0,0.9682523]
[1757703294298,0.38343,116510.0,116500.0,1.7531323]
[1757703294892,0.38343,116510.0,116500.0,0.9682523]
[1757703295094,0.38343,116510.0,116500.0,1.7531323]
[1757703296398,0.38343,116510.0,116500.0,0.9682523]
[1757703296698,0.38343,116510.0,116500.0,1.7530923]
[1757703300501,0.38343,116510.0,116500.0,0.597]
[1757703300802,0.38343,116510.0,116500.0,1.7530523]
[1757703300993,0.38343,116510.0,116500.0,1.56742615]
[1757703308505,0.38343,116510.0,116500.0,1.3818]
[1757703308694,5e-05,116510.0,116500.0,1.56742615]
[1757703308897,5e-05,116510.0,116500.0,1.7530523]
[1757703310407,5e-05,116510.0,116500.0,1.79938869]
[1757703312609,5e-05,116510.0,116500.0,1.66019246]
[1757703312907,5e-05,116510.0,116500.0,1.79938869]
[1757703315209,5e-05,116510.0,116500.0,1.3818]
[1757703315396,5e-05,116510.0,116500.0,1.79938869]
[1757703317813,5e-05,116510.0,116500.0,2.04938869]
[1757703318196,5e-05,116510.0,116500.0,2.04914869]
[1757703320511,5e-05,116510.0,116500.0,1.26458869]
[1757703320811,5e-05,116510.0,116500.0,2.04910869]
[1757703324314,5e-05,116510.0,116500.0,0.847]
[1757703324516,5e-05,116510.0,116500.0,0.86420007]
[1757703324715,5e-05,116510.0,116500.0,2.06622876]
[1757703325712,5e-05,116510.0,116500.0,1.28178876]
[1757703325915,5e-05,116510.0,116500.0,2.06618876]
[1757703326417,5e-05,116510.0,116500.0,1.28178876]
[1757703326610,5e-05,116510.0,116500.0,2.06618876]
[1757703327209,5e-05,116510.0,116500.0,2.04898869]
[1757703328019,5e-05,116510.0,116500.0,2.06651603]
[1757703337629,5e-05,116510.0,116500.0,2.42731603]
[1757703338127,5e-05,116510.0,116500.0,2.06651603]
[1757703339431,5e-05,116510.0,116500.0,1.81651603]
[1757703339926,5e-05,116510.0,116500.0,1.81631603]
[1757703340432,5e-05,116510.0,116500.0,1.03211603]
[1757703340728,5e-05,116510.0,116500.0,1.81631603]
[1757703355239,0.02038562,116530.0,116520.0,0.0362]
[1757703355436,0.02038562,116530.0,116520.0,2.20858869]
[1757703356441,0.02138562,116530.0,116520.0,2.20858869]
[1757703356641,0.02238562,116530.0,116520.0,2.20858869]
[1757703356944,0.02238562,116530.0,116520.0,2.21734081]
[1757703357332,0.02238562,116530.0,116520.0,2.20858869]
[1757703358137,0.02138562,116530.0,116520.0,2.20858869]
[1757703358940,0.02138562,116530.0,116520.0,2.20850869]
[1757703363439,0.02138562,116530.0,116520.0,1.42458869]
[1757703363842,0.02138562,116530.0,116520.0,2.20842869]
[1757703364244,0.02138562,116530.0,116520.0,1.42458869]
[1757703364446,0.02138562,116530.0,116520.0,2.20842869]
[1757703365550,0.02138562,116530.0,116520.0,1.42458869]
[1757703365848,0.02138562,116530.0,116520.0,2.20838869]
[1757703368455,0.02138562,116530.0,116520.0,1.42458869]
[1757703368654,0.02138562,116530.0,116520.0,2.20834869]
[1757703372066,0.02138562,116530.0,116520.0,2.20830869]
[1757703372362,0.02138562,116530.0,116520.0,2.16176572]
[1757703374852,0.02138562,116530.0,116520.0,1.79072]
[1757703375056,0.02138562,116530.0,116520.0,2.16176572]
[1757703376862,0.02138562,116530.0,116520.0,2.16168572]
[1757703377856,0.2925293,116530.0,116520.0,0.6462]
[1757703378060,0.47805216,116530.0,116520.0,1.61536286]
[1757703378362,0.2925293,116530.0,116520.0,1.61536286]
[1757703378565,0.83885216,116530.0,116520.0,1.61536286]
[1757703379267,0.6533293,116530.0,116520.0,1.61536286]
[1757703381966,0.6533293,116530.0,116520.0,1.80088572]
[1757703382268,0.6533293,116530.0,116520.0,1.61536286]
[1757703384071,0.83885216,116530.0,116520.0,1.61536286]
[1757703386967,0.60247216,116530.0,116520.0,1.42984]
[1757703388166,0.61532778,116530.0,116520.0,1.61536286]
[1757703388363,0.42980492,116530.0,116520.0,1.61536286]
[1757703388966,0.44480492,116530.0,116520.0,1.61536286]
[1757703390272,0.42364492,116530.0,116520.0,1.80088572]
[1757703390664,0.42364492,116530.0,116520.0,1.61536286]
[1757703391070,0.42364492,116530.0,116520.0,1.42984]
[1757703391272,0.42364492,116530.0,116520.0,1.61536286]
[1757703391573,0.3971693,116530.0,116520.0,1.61536286]
[1757703391974,0.3971693,116530.0,116520.0,1.80088572]
[1757703392271,0.3971693,116530.0,116520.0,1.42984]
[1757703392475,0.3971693,116530.0,116520.0,1.80088572]
[1757703394475,0.3971693,116530.0,116520.0,1.61536286]
[1757703394874,0.4191093,116530.0,116520.0,0.6462]
[1757703395176,0.4191093,116530.0,116520.0,1.61524286]
[1757703395678,0.39874,116530.0,116520.0,1.61524286]
[1757703395876,0.39874,116530.0,116520.0,1.63231439]
[1757703396373,0.58426286,116530.0,116520.0,1.63231439]
[1757703397080,0.39874,116530.0,116520.0,1.63231439]
[1757703397377,0.58426286,116530.0,116520.0,1.61524286]
[1757703397578,0.58426286,116530.0,116520.0,1.63269073]
[1757703397969,0.39874,116530.0,116520.0,1.63269073]
[1757703399177,0.39874,116530.0,116520.0,1.42972]
[1757703399380,0.39874,116530.0,116520.0,1.61524286]
[1757703400571,0.58426286,116530.0,116520.0,1.61520286]
[1757703401980,0.59788286,116530.0,116520.0,1.61520286]
[1757703402878,0.58426286,116530.0,116520.0,1.61520286]
[1757703407089,0.58426286,116530.0,116520.0,1.42968]
[1757703407383,0.59806286,116530.0,116520.0,1.61520286]
[1757703408389,0.58426286,116530.0,116520.0,1.61520286]
[1757703411188,0.58426286,116530.0,116520.0,0.83172286]
[1757703411682,0.58426286,116530.0,116520.0,1.61516286]
[1757703417794,0.58426286,116530.0,116520.0,1.61512286]
[1757703420196,0.39874,116530.0,116520.0,1.61512286]
[1757703420390,0.58426286,116530.0,116520.0,1.61512286]
[1757703421696,0.39874,116530.0,116520.0,1.61512286]
[1757703421894,0.58426286,116530.0,116520.0,1.61512286]
[1757703422991,0.58426286,116530.0,116520.0,0.6462]
[1757703423193,0.59755286,116530.0,116520.0,1.42956]
[1757703423791,0.58426286,116530.0,116520.0,1.42956]
[1757703424192,0.58426286,116530.0,116520.0,1.61508286]
[1757703425594,0.58426286,116530.0,116520.0,1.61504286]
[1757703426600,0.58426286,116530.0,116520.0,1.42952]
[1757703426798,0.58426286,116530.0,116520.0,1.61504286]
[1757703428803,0.39874,116530.0,116520.0,1.61504286]
[1757703430100,0.016,116530.0,116520.0,1.61504286]
[1757703430898,0.016,116530.0,116520.0,1.42952]
[1757703431288,0.016,116530.0,116520.0,1.61504286]
[1757703432402,0.15515249,116530.0,116520.0,1.70782498]
[1757703432603,0.0378,116530.0,116520.0,1.70778498]
[1757703432804,0.53775249,116530.0,116520.0,1.56863249]
[1757703435608,0.3986,116530.0,116520.0,1.56863249]
[1757703435801,0.53775249,116530.0,116520.0,1.56863249]
[1757703437701,0.3986,116530.0,116520.0,1.56863249]
[1757703437904,0.53775249,116530.0,116520.0,1.56863249]
[1757703438304,0.53775249,116530.0,116520.0,1.42948]
[1757703438504,0.53775249,116530.0,116520.0,1.56863249]
[1757703439010,0.3986,116530.0,116520.0,1.56863249]
[1757703439205,0.53775249,116530.0,116520.0,1.56863249]
[1757703439509,0.3986,116530.0,116520.0,1.56863249]
[1757703439809,0.53775249,116530.0,116520.0,1.56863249]
[1757703444811,0.53775249,116530.0,116520.0,1.42948]
[1757703445010,0.53775249,116530.0,116520.0,1.56863249]
[1757703445204,0.53775249,116530.0,116520.0,0.78535249]
[1757703445407,0.3986,116530.0,116520.0,1.56855249]
[1757703445810,0.53775249,116530.0,116520.0,1.56855249]
[1757703446012,0.53775249,116530.0,116520.0,1.4294]
[1757703446214,0.53775249,116530.0,116520.0,1.56855249]
[1757703446409,0.67690498,116530.0,116520.0,1.56855249]
[1757703447514,0.67832202,116530.0,116520.0,1.56855249]
[1757703448515,0.40001704,116530.0,116520.0,1.56855249]
[1757703448718,0.67832202,116530.0,116520.0,1.56855249]
[1757703451219,0.67832202,116530.0,116520.0,1.4294]
[1757703451517,0.67832202,116530.0,116520.0,1.56855249]
[1757703455522,0.53916953,116530.0,116520.0,1.56855249]
[1757703455823,0.53916953,116530.0,116520.0,1.70770498]
[1757703457122,0.53916953,116530.0,116520.0,1.56855249]
[1757703457526,0.53916953,116530.0,116520.0,1.70770498]
[1757703457825,0.53916953,116530.0,116520.0,1.56855249]
[1757703458517,0.53916953,116530.0,116520.0,1.70770498]
[1757703459529,0.40001704,116530.0,116520.0,1.70770498]
[1757703459825,0.53916953,116530.0,116520.0,0.78535249]
[1757703460119,0.67832202,116530.0,116520.0,1.56843249]
[1757703465329,0.67832202,116530.0,116520.0,1.56839249]
[1757703465724,0.40001704,116530.0,116520.0,1.56839249]
[1757703466323,0.53916953,116530.0,116520.0,1.70754498]
[1757703467928,0.37821704,116530.0,116520.0,1.70754498]
[1757703468128,0.51736953,116530.0,116520.0,1.70754498]
[1757703469532,0.01741704,116530.0,116520.0,1.70754498]
[1757703469727,0.15656953,116530.0,116520.0,1.70754498]
[1757703469927,0.15656953,116530.0,116520.0,1.70750498]
[1757703470328,0.01741704,116530.0,116520.0,1.70750498]
[1757703470529,0.15656953,116530.0,116520.0,1.70750498]
[1757703472634,0.01741704,116530.0,116520.0,1.70750498]
[1757703472835,0.15656953,116530.0,116520.0,1.70750498]
[1757703474738,0.01741704,116530.0,116520.0,1.70750498]
[1757703474935,0.15656953,116530.0,116520.0,1.70750498]
[1757703475740,0.01741704,116530.0,116520.0,0.92450498]
[1757703476038,0.15656953,116530.0,116520.0,1.70742498]
[1757703476640,0.15656953,116530.0,116520.0,0.92450498]
[1757703476834,0.15656953,116530.0,116520.0,1.70742498]
[1757703478643,0.15656953,116530.0,116520.0,0.92450498]
[1757703478840,0.17902953,116530.0,116520.0,1.70742498]
[1757703479236,0.03987704,116530.0,116520.0,1.70742498]
[1757703479437,0.17902953,116530.0,116520.0,1.70742498]
[1757703480144,0.03987704,116530.0,116520.0,1.70742498]
[1757703480339,0.17902953,116530.0,116520.0,1.70742498]
[1757703480944,0.17902953,116530.0,116520.0,0.92450498]
[1757703481345,0.17902953,116530.0,116520.0,1.70738498]
[1757703481541,0.17902953,116530.0,116520.0,0.92450498]
[1757703481744,0.17902953,116530.0,116520.0,1.70738498]
[1757703481931,0.03987704,116530.0,116520.0,1.70738498]
[1757703482132,0.17902953,116530.0,116520.0,0.78535249]
[1757703482344,0.17902953,116530.0,116520.0,1.56823249]
[1757703482740,0.17902953,116530.0,116520.0,1.70738498]
[1757703484146,0.03987704,116530.0,116520.0,0.92450498]
[1757703484348,0.17902953,116530.0,116520.0,1.70738498]
[1757703485641,0.17902953,116530.0,116520.0,1.56823249]
[1757703486441,0.31818202,116530.0,116520.0,1.56823249]
[1757703486644,0.31818202,116530.0,116520.0,0.78535249]
[1757703486843,0.31818202,116530.0,116520.0,1.56819249]
[1757703487337,0.67898202,116530.0,116520.0,1.56815249]
[1757703487542,0.67898202,116530.0,116520.0,1.429]
[1757703487741,0.67898202,116530.0,116520.0,1.56815249]
[1757703492441,0.58623025,116530.0,116520.0,1.61455321]
[1757703494748,0.40067704,116530.0,116520.0,1.429]
[1757703495253,0.58623025,116530.0,116520.0,1.61455321]
[1757703498854,0.58623025,116530.0,116520.0,1.429]
[1757703499047,0.58623025,116530.0,116520.0,1.61455321]
[1757703499249,0.40067704,116530.0,116520.0,1.61455321]
[1757703499648,0.58623025,116530.0,116520.0,1.61455321]
[1757703500753,0.40067704,116530.0,116520.0,1.61455321]
[1757703500954,0.58623025,116530.0,116520.0,1.61455321]
[1757703502254,0.40067704,116530.0,116520.0,1.61455321]
[1757703502458,0.58623025,116530.0,116520.0,1.61455321]
[1757703504356,0.58623025,116530.0,116520.0,1.429]
[1757703504560,0.40067704,116530.0,116520.0,1.61455321]
[1757703504856,0.58623025,116530.0,116520.0,1.61455321]
[1757703506943,0.58623025,116530.0,116520.0,0.83175321]
[1757703507153,0.58623025,116530.0,116520.0,1.61435321]
[1757703510562,0.01741704,116530.0,116520.0,1.61435321]
[1757703511362,0.01741704,116530.0,116520.0,1.4288]
[1757703511555,0.01741704,116530.0,116520.0,1.61435321]
[1757703511755,0.20297025,116530.0,116520.0,1.61435321]
[1757703514865,0.20297025,116530.0,116520.0,1.4288]
[1757703515065,0.20297025,116530.0,116520.0,1.61435321]
[1757703516765,0.20297025,116530.0,116520.0,1.4288]
[1757703516965,0.20297025,116530.0,116520.0,1.61435321]
[1757703518359,0.22462025,116530.0,116520.0,1.63126689]
[1757703518660,0.03906704,116530.0,116520.0,1.44571368]
[1757703518861,0.22462025,116530.0,116520.0,1.44571368]
[1757703519868,0.22462025,116530.0,116520.0,1.63126689]
[1757703521467,0.22462025,116530.0,116520.0,1.44571368]
[1757703523164,0.22462025,116530.0,116520.0,1.44563368]
[1757703525070,0.03906704,116530.0,116520.0,1.44563368]
[1757703525273,0.20297025,116530.0,116520.0,1.63118689]
[1757703526072,0.01741704,116530.0,116520.0,1.63118689]
[1757703526370,0.20297025,116530.0,116520.0,1.63118689]
[1757703526571,0.20297025,116530.0,116520.0,0.84878689]
[1757703526865,0.22462025,116530.0,116520.0,0.66323368]
[1757703527077,0.58542025,116530.0,116520.0,0.66323368]
[1757703527372,0.58542025,116530.0,116520.0,1.44555368]
[1757703528171,0.58542025,116530.0,116520.0,1.63110689]
[1757703528868,0.39986704,116530.0,116520.0,1.63110689]
[1757703529170,0.58542025,116530.0,116520.0,1.63110689]
[1757703533170,0.58542025,116530.0,116520.0,0.84878689]
[1757703533380,0.58542025,116530.0,116520.0,1.63106689]
[1757703533672,0.39986704,116530.0,116520.0,1.63106689]
[1757703533974,0.58542025,116530.0,116520.0,1.63106689]
[1757703535067,0.58542025,116530.0,116520.0,1.44551368]
[1757703535966,0.39986704,116530.0,116520.0,1.44551368]
[1757703536167,0.58542025,116530.0,116520.0,1.44551368]
[1757703537377,0.58542025,116530.0,116520.0,1.63106689]
[1757703537876,0.58542025,116530.0,116520.0,0.66323368]
[1757703538076,0.58542025,116530.0,116520.0,1.63102689]
[1757703538378,0.37821704,116530.0,116520.0,1.63102689]
[1757703538577,0.56377025,116530.0,116520.0,1.63102689]
[1757703540176,0.37821704,116530.0,116520.0,1.63102689]
[1757703540371,0.56377025,116530.0,116520.0,1.44547368]
[1757703542169,0.56377025,116530.0,116520.0,1.63102689]
[1757703542778,0.58407768,116530.0,116520.0,1.63102689]
[1757703544779,0.39852447,116530.0,116520.0,1.63102689]
[1757703544982,0.58407768,116530.0,116520.0,1.63102689]
[1757703547783,0.39852447,116530.0,116520.0,1.63102689]
[1757703547981,0.58407768,116530.0,116520.0,1.63102689]
[1757703549880,0.39852447,116530.0,116520.0,1.63102689]
[1757703550083,0.58407768,116530.0,116520.0,1.63102689]
[1757703550382,0.22327768,116530.0,116520.0,1.63102689]
[1757703552384,0.17687879,116530.0,116520.0,1.584628]
[1757703556291,0.17687879,116530.0,116520.0,1.44547368]
[1757703556479,0.17687879,116530.0,116520.0,1.584628]
[1757703558686,0.33810311,116530.0,116520.0,0.66323368]
[1757703559086,0.33810311,116530.0,116520.0,1.584508]
[1757703559595,0.33810311,116530.0,116520.0,0.802388]
[1757703559796,0.33810311,116530.0,116520.0,1.584508]
[1757703560391,0.33810311,116530.0,116520.0,0.802388]
[1757703560785,0.33810311,116530.0,116520.0,1.584508]
[1757703560991,0.05979447,116530.0,116520.0,1.44535368]
[1757703561196,0.19894879,116530.0,116520.0,1.72366232]
[1757703561693,0.19894879,116530.0,116520.0,0.94154232]
[1757703561999,0.19894879,116530.0,116520.0,1.584508]
[1757703564398,0.05979447,116530.0,116520.0,1.584508]
[1757703564602,0.19894879,116530.0,116520.0,1.44535368]
[1757703564900,0.19894879,116530.0,116520.0,1.584508]
[1757703567598,0.17864136,116530.0,116520.0,1.56747432]
[1757703567999,0.19900882,116530.0,116520.0,1.56747432]
[1757703570999,0.17864136,116530.0,116520.0,1.56747432]
[1757703571503,0.19856519,116530.0,116520.0,1.56747432]
[1757703572806,0.19856519,116530.0,116520.0,1.70662864]
[1757703575706,0.33771951,116530.0,116520.0,1.56747432]
[1757703575906,0.33771951,116530.0,116520.0,1.56735432]
[1757703576801,0.33771951,116530.0,116520.0,0.6462]
[1757703577108,0.33771951,116530.0,116520.0,1.56735432]
[1757703577302,0.19856519,116530.0,116520.0,1.56735432]
[1757703582308,0.19856519,116530.0,116520.0,1.70650864]
[1757703583110,0.19856519,116530.0,116520.0,1.4282]
[1757703583407,0.19856519,116530.0,116520.0,1.56735432]
[1757703584910,0.33771951,116530.0,116520.0,1.56731432]
[1757703586110,0.19856519,116530.0,116520.0,1.56731432]
[1757703588304,0.05941087,116530.0,116520.0,1.56731432]
[1757703588606,0.17649519,116530.0,116520.0,1.70646864]
[1757703589111,0.03734087,116530.0,116520.0,1.70646864]
[1757703589310,0.17649519,116530.0,116520.0,1.70646864]
[1757703590114,0.15657136,116530.0,116520.0,1.70646864]
[1757703590307,0.01741704,116530.0,116520.0,1.70646864]
[1757703590507,0.15657136,116530.0,116520.0,1.70646864]
[1757703593108,0.01741704,116530.0,116520.0,2.20642296]
[1757703593314,0.01741704,116530.0,116520.0,1.67446296]
[1757703593615,0.01741704,116530.0,116520.0,2.45634296]
[1757703595313,0.01741704,116530.0,116520.0,2.46497203]
[1757703598815,0.01741704,116530.0,116520.0,2.55074663]
[1757703600214,0.01741704,116530.0,116520.0,2.46497203]
[1757703600911,0.01741704,116530.0,116520.0,2.46489203]
[1757703601509,0.01741704,116530.0,116520.0,2.55066663]
[1757703602319,0.01741704,116530.0,116520.0,2.46489203]
[1757703603412,0.01741704,116530.0,116520.0,2.46242961]
[1757703604020,0.01741704,116530.0,116520.0,2.46238961]
[1757703605016,0.01741704,116530.0,116520.0,2.54816421]
[1757703605412,0.19775686,116550.0,116540.0,0.03636]
[1757703605620,0.19775686,116550.0,116540.0,1.26546864]
[1757703605809,0.19775686,116550.0,116540.0,1.90807432]
[1757703606319,0.35981118,116550.0,116540.0,1.90807432]
[1757703606830,0.22065686,116550.0,116540.0,1.90803432]
[1757703607018,0.22165686,116550.0,116540.0,1.90803432]
[1757703607219,0.08250254,116550.0,116540.0,1.76888]
[1757703607520,0.7499655,116550.0,116540.0,0.62636]
[1757703607723,1.1233955,116550.0,116540.0,0.61266]
[1757703608622,1.1233955,116550.0,116540.0,0.59]
[1757703608820,1.1233955,116550.0,116540.0,0.58495001]
[1757703609220,1.19156224,116550.0,116540.0,0.58495001]
[1757703609524,0.03553,116510.0,116500.0,0.02266]
[1757703609818,0.81379296,116510.0,116500.0,0.59636]
[1757703610024,1.05116296,116510.0,116500.0,0.59636]
[1757703610224,0.77285432,116510.0,116500.0,0.87466864]
[1757703610420,0.3837,116510.0,116500.0,0.87466864]
[1757703610620,0.3608,116520.0,116500.0,1.79550296]
[1757703610821,0.3837,116520.0,116510.0,0.45382296]
[1757703611027,0.3837,116520.0,116510.0,1.03382296]
[1757703611526,0.77285432,116520.0,116510.0,0.75551432]
[1757703611723,1.84551296,116520.0,116510.0,0.58]
[1757703611929,1.84551296,116520.0,116510.0,0.60266]
[1757703612125,1.70635864,116520.0,116510.0,0.60266]
[1757703612429,0.92463864,116520.0,116510.0,0.60266]
[1757703612619,0.64633,116520.0,116510.0,0.60266]
[1757703612818,0.92463864,116520.0,116510.0,0.60566]